Cogmind - Beta 12 X2 @@@ ROGUE MODE // 2022.09.10 @ 16:58:38 Player: ArabianSandBoa Result: Self-destructed Performance ------------- Evolutions (2) 1000 Regions Visited (6) 1200 Robots Destroyed (61) 305 Value Destroyed (2897) 2897 Prototype IDs (1) 20 Alien Tech Used (0) 0 Bonus (1670) 1670 TOTAL SCORE: 7092 Bonus ------- High Alert Combat Kills 461 Follower Combat Kills 145 Entered Garrisons 200 Used RIF Installer 1000 Friendly Fire -136 Cogmind --------- Core Integrity 124/550 Matter 1/300 Energy 20/275 System Corruption 5% Temperature Cool (9) Movement Core (3000) Ox59 Location -8/Materials Parts ------- > --- POWER (1) -------- Deuterium Engine > --- PROPULSION (2) --- (None) > --- UTILITY (6) ------ Advanced Cooling System Cargo Storage Unit Advanced Visual Processing Unit Signal Interpreter Medium Reactive Plating > --- WEAPON (2) ------- Enhanced Gauss Cannon > --- INVENTORY (30) --- Deuterium Engine Armored Wheel Surge Thruster Surge Thruster Cargo Storage Unit Trap Scanner Improved Light Armor Plating Medium Reactive Plating Medium Reactive Plating Improved Focal Shield Improved Shield Generator Relay Coupler [NC] (26) Relay Coupler [Swarmer] (35) Relay Coupler [Cutter] Relay Coupler [Grunt] (24) Relay Coupler [Grunt] (23) Relay Coupler [Grunt] (26) Relay Coupler [Duelist] (24) Relay Coupler [Duelist] (28) Relay Coupler [Sentry] (20) Relay Coupler [Sentry] (20) Relay Coupler [Demolisher] (21) Long-range Proton Cannon Disruptor Cannon Enhanced Autogun Mass Driver Blade Saw Peak State ------------ > --- POWER ------------ Light Nuclear Core > --- PROPULSION ------- Armored Medium Treads Carbon-fiber Leg > --- UTILITY ---------- Advanced Cooling System Cargo Storage Unit Signal Interpreter Improved Light Armor Plating Hacking Suite > --- WEAPON ----------- Tesla Rifle Disruptor Cannon > --- INVENTORY -------- Gravmag System Cargo Storage Unit Cargo Storage Unit Trap Scanner Improved Focal Shield Point Defense System Relay Coupler [NC] Relay Coupler [Swarmer] Relay Coupler [Swarmer] Relay Coupler [Grunt] Relay Coupler [Grunt] Relay Coupler [Duelist] Relay Coupler [Sentry] Relay Coupler [Demolisher] Improved Dynamic Insulation System Advanced System Restoration Module Advanced Trap Extractor Heavy Laser Beamcaster Long-range Proton Cannon Heavy Particle Cannon Enhanced Autogun Gauss Rifle Mass Driver Enhanced Gauss Cannon Remote Datajack Axe Axe [Rating: 50] Favorites ----------- Power Light Nuclear Core Engine Ion Engine Power Core Light Nuclear Core Propulsion Compact Wheel Treads Armored Medium Treads Leg Carbon-fiber Leg Wheel Compact Wheel Utility Signal Interpreter Device Advanced Heat Sink Storage Cargo Storage Unit Processor Signal Interpreter Hackware Hacking Suite Protection Improved Light Armor Plating Weapon Shock Rifle Energy Gun Shock Rifle Energy Cannon Heavy Particle Cannon Ballistic Gun Enhanced Autogun Ballistic Cannon Enhanced Gauss Cannon Special Weapon Remote Datajack Build | -11 -10 -10 -9 -8 -8 -8 ------- Run | Scr Mat Min Mat Mat Gar Mat Slots Evolved 4 | . . . 2 2 . . Power . | . . . . . . . Propulsion . | . . . . . . . Utility 4 | . . . 2 2 . . Weapon . | . . . . . . . Parts Attached 71 | 7 1 . 9 7 38 9 Power 8 | 1 . . . 2 3 2 Engine 5 | 1 . . . 2 . 2 Core 3 | . . . . . 3 . Reactor . | . . . . . . . Propulsion 13 | 2 . . 4 1 4 2 Treads 2 | . . . . . 2 . Leg 2 | . . . . . 2 . Wheel 9 | 2 . . 4 1 . 2 Hover . | . . . . . . . Flight . | . . . . . . . Utility 20 | 1 1 . 2 2 11 3 Device 7 | . . . . 2 4 1 Storage 2 | 1 . . 1 . . . Processor 2 | . 1 . . . . 1 Hackware 5 | . . . . . 5 . Protection 4 | . . . 1 . 2 1 Artifact . | . . . . . . . Weapon 30 | 3 . . 3 2 20 2 Energy Gun 14 | 2 . . 1 1 10 . Energy Cannon 5 | . . . 1 1 2 1 Ballistic Gun 4 | 1 . . . . 3 . Ballistic Cannon 3 | . . . 1 . 1 1 Launcher . | . . . . . . . Special Weapon 4 | . . . . . 4 . Impact Weapon . | . . . . . . . Slashing Weapon . | . . . . . . . Piercing Weapon . | . . . . . . . Special Melee Weapon . | . . . . . . . Unidentified Prototypes 1 | . . . . . 1 . Corrupted Parts 1 | . . . . . 1 . System Corruption 5 | . . . . . 5 . Parts Lost 18 | . . . 4 1 10 3 Power 2 | . . . . . 2 . Propulsion 7 | . . . 2 1 3 1 Utility 3 | . . . . . 3 . Weapon 6 | . . . 2 . 2 2 Highest Loss Streak 3 | . . . 2 1 3 3 To Critical Strikes . | . . . . . . . Average Slot Usage (%) 85 | . 94 100 76 85 85 86 Engine 3 | . 14 14 11 9 . 7 Core 5 | . . . . . 8 1 Treads 6 | . . . . . 7 14 Leg 4 | . . . . . 6 . Wheel 7 | . 28 28 18 18 2 3 Device 5 | . . . . 13 7 . Storage 9 | . 14 14 11 9 9 9 Processor 9 | . 8 14 11 9 9 11 Hackware 10 | . . . . . 14 11 Protection 4 | . . . 5 9 4 9 Energy Gun 11 | . 28 28 13 6 10 9 Energy Cannon 1 | . . . 1 9 1 . Ballistic Gun 1 | . . . . . 1 . Ballistic Cannon 1 | . . . 4 2 1 . Special Weapon 2 | . . . . . 3 8 Naked Turns . | . . . . . . . Heaviest Build 168 | 14 14 14 157 162 168 160 Greatest Support 47 | 26 26 26 32 26 47 47 Greatest Overweight (x) 13 | 1 . . 9 6 10 13 Average Overweight (x) 3 | . . . 5 5 5 3 Largest Inventory Capacity 30 | 8 8 8 30 30 30 30 Average Capacity 27 | 6 8 8 29 30 30 30 Most Carried 30 | 4 4 8 29 30 30 30 Average Carried 22 | 1 4 6 15 26 25 29 Final Capacity 30 | 8 8 8 30 30 30 30 Final Carried 29 | 4 4 8 29 26 29 28 Class Distribution -------------------- 55% | Bothacker-Mutant 35% | Hauler-Mutant 9% | Mutant Dominant Class ---------------- Mutant | -10/Materials Mutant | -10/Mines Hauler-Mutant | -9/Materials Hauler-Mutant | -8/Materials Bothacker-Mutant | -8/Garrison Bothacker-Mutant | -8/Materials Resources | -11 -10 -10 -9 -8 -8 -8 ----------- Run | Scr Mat Min Mat Mat Gar Mat Matter Collected 1204 | 152 . 128 124 . 719 81 Remotely . | . . . . . . . Salvage Created 2684 | 73 . 295 666 73 1150 427 Parts 146 | 2 . 18 45 3 64 14 Haulers Intercepted 1 | . . . . . . 1 Recyclers Shooed 1 | . . . . . . 1 Parts Field Recycled . | . . . . . . . Retrieved Matter . | . . . . . . . Parts Self-Destructed . | . . . . . . . Prevented . | . . . . . . . Kills | -11 -10 -10 -9 -8 -8 -8 ------- Run | Scr Mat Min Mat Mat Gar Mat Combat Hostiles Destroyed 48 | . . 5 12 1 26 4 Guns 33 | . . 5 9 . 17 2 Cannons 12 | . . . 3 1 8 . AOE 1 | . . . . . . 1 Classes Destroyed 13 | 1 . 3 4 2 2 1 Worker 3 | . . . 1 . . 2 Tunneler 1 | . . 1 . . . . Hauler 1 | . . . . . . 1 Recycler 4 | 1 . 1 1 . . 1 Operator 1 | . . . . 1 . . Watcher 2 | . . . 2 . . . Swarmer 6 | . . 3 . . 3 . Cutter 2 | . . . . . 2 . Grunt 22 | . . 2 5 . 12 3 Duelist 1 | . . . 1 . . . Sentry 12 | . . . 6 . 5 1 Hunter 2 | . . . . 1 1 . Programmer 3 | . . . . . 3 . Thug 1 | . . 1 . . . . Best Kill Streak 4 | 1 . 3 4 1 4 4 Combat Bots Only 4 | . . 2 2 1 4 2 Max Kills in Single Turn 2 | 1 . 1 2 1 1 1 Gunslinging . | . . . . . . . Exploded 1 | . . . . . . 1 Melee . | . . . . . . . Uniques/NPCs Destroyed . | . . . . . . . Combat | -11 -10 -10 -9 -8 -8 -8 -------- Run | Scr Mat Min Mat Mat Gar Mat Damage Taken 2586 | . . 105 344 180 1468 489 Core 511 | . . 38 47 64 314 48 Absorbed by Shields . | . . . . . . . Core Remaining (%) 90 | 100 . 84 88 . . . Volleys Fired 234 | 5 . 12 36 6 147 28 Largest 2 | 2 . 2 2 2 2 2 Hottest 150 | 80 . 80 114 150 150 146 Shots Fired 354 | 10 . 24 61 12 216 31 Gun 263 | 10 . 24 38 4 159 28 Cannon 64 | . . . 23 8 30 3 Launcher . | . . . . . . . Special 27 | . . . . . 27 . Kinetic 72 | . . . 16 2 54 . Thermal 41 | . . . 20 8 13 . Explosive . | . . . . . . . Electromagnetic 214 | 10 . 24 25 2 122 31 Robot Hit Streak 13 | 3 . 4 13 3 11 5 Robot Miss Streak 7 | 2 . 2 2 2 7 2 Penetration Max 1 | . . . . . 1 . Secondary Targets 2 | . . 1 . . 1 . Max Gunslinging Chain 1 | . . 1 . . 1 . Shots Hit Robots 182 | 7 . 14 41 5 98 17 Core Hits 88 | 2 . 10 20 3 44 9 Critical Kills 1 | . . . . . 1 . Critical Parts Destroyed . | . . . . . . . Critical Strikes 8 | . . 1 2 . 5 . Burn 1 | . . . 1 . . . Destroy 1 | . . . . . 1 . Blast 4 | . . . . . 4 . Corrupt 2 | . . 1 1 . . . Melee Attacks . | . . . . . . . Impact . | . . . . . . . Slashing . | . . . . . . . Piercing . | . . . . . . . Sneak Attacks . | . . . . . . . Combat Hostiles . | . . . . . . . Follow-up Attacks . | . . . . . . . Damage Inflicted 3502 | 90 . 207 769 126 1769 541 Guns 2437 | 90 . 207 487 21 1211 421 Cannons 980 | . . . 282 105 518 75 Explosions 85 | . . . . . 40 45 Melee . | . . . . . . . Ramming . | . . . . . . . Kinetic 706 | . . . 183 . 523 . Thermal 716 | . . . 358 71 242 45 Explosive . | . . . . . . . Electromagnetic 2080 | 90 . 207 228 55 1004 496 Impact . | . . . . . . . Slashing . | . . . . . . . Piercing . | . . . . . . . Highest Corruption 5 | . . . . . 5 5 Average Corruption 5 | . . . . . 5 5 Corruption Purged . | . . . . . . . Corruption Blocked . | . . . . . . . Effects 80 | . . . . . 69 11 Message Errors 20 | . . . . . 16 4 Matter Fused 25 | . . . . . 24 1 Heat Flow Errors 5 | . . . . . 5 . Energy Discharges 9 | . . . . . 8 1 Parts Rejected 1 | . . . . . . 1 Data Loss (minor) 9 | . . . . . 7 2 Data Loss (major) 4 | . . . . . 2 2 Misfires 3 | . . . . . 3 . Alerts 4 | . . . . . 4 . Overload Shots . | . . . . . . . Overflow Damage . | . . . . . . . Projectiles . | . . . . . . . Explosions . | . . . . . . . Melee . | . . . . . . . Knockbacks 10 | . . . 5 . 5 . Impact . | . . . . . . . Kinetic 9 | . . . 4 . 5 . Secondary 1 | . . . 1 . . . Self-Inflicted Damage . | . . . . . . . Shots . | . . . . . . . Rammed . | . . . . . . . Targets Rammed . | . . . . . . . Kicked . | . . . . . . . Crushed . | . . . . . . . Highest Temperature 285 | 72 . 95 285 168 231 237 Average Temperature 63 | 33 . 39 84 66 53 71 Received Heat Transfer 1140 | . . 69 153 108 558 252 Siege Activations . | . . . . . . . Robots Corrupted 2 | . . . . . 1 1 Combat Hostiles 2 | . . . . . 1 1 Parts Fried 14 | . . . 3 2 5 4 Impact Corruptions . | . . . . . . . Robots Melted . | . . . . . . . Combat Hostiles . | . . . . . . . Parts Melted . | . . . . . . . Heat Transferred 1173 | . . . 703 111 309 50 Parts Sabotaged . | . . . . . . . Parts Stolen . | . . . . . . . Parts Stripped . | . . . . . . . Power Chain Reactions 2 | . . . . . 1 1 Missiles Intercepted . | . . . . . . . Alert | -11 -10 -10 -9 -8 -8 -8 ------- Run | Scr Mat Min Mat Mat Gar Mat Peak Influence 2404 | 5 3 182 305 210 2404 1194 Initial 1171 | . 3 . 70 124 136 1171 Average 842 | 1 3 59 161 174 1072 1154 Maximum Alert Level 5 | . . . 1 1 5 4 Low Security (%) 26 | 100 100 100 71 73 9 . Level 1 8 | . . . 28 26 5 . Level 2 11 | . . . . . 17 . Level 3 20 | . . . . . 28 19 Level 4 14 | . . . . . 11 80 Level 5 17 | . . . . . 27 . High Security . | . . . . . . . Max Security . | . . . . . . . Squads Dispatched 3 | . . . 1 1 . 1 Investigation 3 | . . . 1 1 . 1 Extermination . | . . . . . . . Reinforcement . | . . . . . . . Assault . | . . . . . . . Garrison . | . . . . . . . Intercept . | . . . . . . . Searches Triggered . | . . . . . . . Construction Impeded . | . . . . . . . Haulers Reinforced . | . . . . . . . Active Scanning Responses . | . . . . . . . Cargo Convoy Interrupts . | . . . . . . . Stealth | -11 -10 -10 -9 -8 -8 -8 --------- Run | Scr Mat Min Mat Mat Gar Mat Distress Signals 3 | . . . 1 . . 2 Communications Jammed . | . . . . . . . Distress Signals . | . . . . . . . Times Spotted 70 | . . 8 15 4 35 8 Peak Tracking Total 9 | . . 3 3 4 9 3 Tactical Retreats 1 | . . . . . 1 . Traps | -11 -10 -10 -9 -8 -8 -8 ------- Run | Scr Mat Min Mat Mat Gar Mat Traps Triggered 6 | . . . 1 1 4 . Indirectly . | . . . . . . . Trap Hack Attempts . | . . . . . . . Triggered . | . . . . . . . Disarmed . | . . . . . . . Reprogrammed . | . . . . . . . Reused . | . . . . . . . Traps Extracted . | . . . . . . . Installed . | . . . . . . . Triggered . | . . . . . . . Machines | -11 -10 -10 -9 -8 -8 -8 ---------- Run | Scr Mat Min Mat Mat Gar Mat Machines Disabled 13 | . . 1 1 2 7 2 Max in Single Turn 1 | . . 1 1 1 1 1 Garrison Relay 4 | . . . . . 4 . Machines Sabotaged . | . . . . . . . Overloaded Fab Kills . | . . . . . . . Hacking | -11 -10 -10 -9 -8 -8 -8 --------- Run | Scr Mat Min Mat Mat Gar Mat Machines Accessed 7 | . . . 2 2 1 2 Terminals 5 | . . . 2 . 1 2 Fabricators . | . . . . . . . Repair Stations . | . . . . . . . Recycling Units 1 | . . . . 1 . . Scanalyzers . | . . . . . . . Garrison Access 1 | . . . . 1 . . Total Hacks 16 | . . . 5 2 2 7 Successful 8 | . . . 3 2 1 2 Failed 8 | . . . 2 . 1 5 Catastrophic 3 | . . . . . 1 2 Database Lockouts . | . . . . . . . Manual 6 | . . . 2 . 1 3 Terminals 14 | . . . 5 . 2 7 Fabricators . | . . . . . . . Repair Stations . | . . . . . . . Recycling Units 1 | . . . . 1 . . Scanalyzers . | . . . . . . . Garrison Access 1 | . . . . 1 . . Terminal Hacks 6 | . . . 3 . 1 2 Record 1 | . . . 1 . . . Emergency Access Points 2 | . . . . . 1 1 Hauler Manifests 1 | . . . 1 . . . Zone Layout 2 | . . . 1 . . 1 Fabricator Hacks . | . . . . . . . Repair Station Hacks . | . . . . . . . Recycling Unit Hacks 1 | . . . . 1 . . Retrieve Components 1 | . . . . 1 . . Scanalyzer . | . . . . . . . Garrison Access Hacks 1 | . . . . 1 . . Unlock Access 1 | . . . . 1 . . Unauthorized Hacks . | . . . . . . . Terminals . | . . . . . . . Fabricators . | . . . . . . . Repair Stations . | . . . . . . . Recycling Units . | . . . . . . . Scanalyzers . | . . . . . . . Garrison Access . | . . . . . . . Data Cores Recovered . | . . . . . . . Used . | . . . . . . . Hacking Detections 5 | . . . 2 . 1 2 Full Trace Events . | . . . . . . . Feedback Events . | . . . . . . . Feedback Blocked . | . . . . . . . Robot Schematics Acquired . | . . . . . . . Robots Built . | . . . . . . . Authchips . | . . . . . . . Time . | . . . . . . . Total Robot Build Rating . | . . . . . . . Part Schematics Acquired . | . . . . . . . Parts Built . | . . . . . . . Authchips . | . . . . . . . Time . | . . . . . . . Total Part Build Rating . | . . . . . . . Parts Repaired . | . . . . . . . Time . | . . . . . . . Parts Recycled . | . . . . . . . Recycled Matter . | . . . . . . . Retrieved Matter . | . . . . . . . Retrieved Components 2 | . . . . 2 . . Parts Scanalyzed . | . . . . . . . Part Schematics Acquired . | . . . . . . . Parts Damaged . | . . . . . . . Bothacking | -11 -10 -10 -9 -8 -8 -8 ------------ Run | Scr Mat Min Mat Mat Gar Mat Used RIF Installer 2 | . . . . . 2 . Program Shield 1 | . . . . . 1 . Robots Hacked 7 | . . . . . 7 . Non-combat . | . . . . . . . Combat 7 | . . . . . 7 . Robot Hacks Applied 9 | . . . . . 9 . parse_system 1 | . . . . . 1 . amplify_resonance 1 | . . . . . 1 . go_dormant 1 | . . . . . 1 . overwrite_iff 3 | . . . . . 3 . formatsys_high 3 | . . . . . 3 . Relay Couplers Released 16 | . . . . . 16 . Machine Destruction 16 | . . . . . 16 . Attached 4 | . . . . . 4 . Fabnet Peak Effective % . | . . . . . . . Robots Rewired 2 | . . . . . 2 . Allies Hacked . | . . . . . . . Hacks Repelled . | . . . . . . . Allies | -11 -10 -10 -9 -8 -8 -8 -------- Run | Scr Mat Min Mat Mat Gar Mat Total Allies 10 | . . 1 . . 9 . Largest Group 4 | . . 1 . . 4 3 Highest-Rated Group 70 | . . 31 . . 70 25 Highest-Rated Ally 31 | . . 31 . . 29 10 Total Orders . | . . . . . . . Ally Attacks 35 | . . 6 . . 22 7 Total Damage 543 | . . 43 . . 422 78 Kills 9 | . . 1 . . 7 1 Allies Corrupted . | . . . . . . . Allies Melted . | . . . . . . . Intel | -11 -10 -10 -9 -8 -8 -8 ------- Run | Scr Mat Min Mat Mat Gar Mat Robot Analysis Total . | . . . . . . . Derelict Logs Recovered 1 | . . 1 . . . . Drone Launches . | . . . . . . . Drone Recoveries . | . . . . . . . Exploration | -11 -10 -10 -9 -8 -8 -8 ------------- Run | Scr Mat Min Mat Mat Gar Mat Turns Passed 5488 | 63 46 389 728 146 3618 498 Spaces Moved 1729 | 42 50 352 337 63 790 95 Core 15 | 15 . . . . . . Treads 413 | . . . . . 327 86 Legs 209 | . . . . . 209 . Wheels 1092 | 27 50 352 337 63 254 9 Hover . | . . . . . . . Flight . | . . . . . . . Fastest Speed 50 | 50 90 90 90 165 165 285 Average Speed 263 | 78 90 90 173 176 391 393 Slowest Speed 820 | 100 90 90 235 180 820 405 Overloaded Moves . | . . . . . . . Propulsion Burnouts . | . . . . . . . Robots Hopped . | . . . . . . . Cave-ins Triggered . | . . . . . . . Exploration Rate (%) 32 | 3 11 73 33 9 86 13 Regions Visited 6 Branch Regions 1 Pre-discovered Areas 2 | . . 2 . . . . Known Exits Taken 4 | . 1 1 1 1 . . Unknown Exits Taken 1 | 1 . . . . . . Scrap Searched 1 | . . 1 . . . . Spaces Dug . | . . . . . . . Terrain Destroyed 19 | . . . 2 1 12 4 Melee . | . . . . . . . Projectile 7 | . . . 2 1 4 . AOE 12 | . . . . . 8 4 Terrain Rammed . | . . . . . . . Walls Destroyed . | . . . . . . . Machines Disabled . | . . . . . . . Actions | -11 -10 -10 -9 -8 -8 -8 --------- Run | Scr Mat Min Mat Mat Gar Mat Total 2345 | 58 50 401 417 86 1143 190 Wait 162 | . . 30 12 . 78 42 Move 1721 | 41 49 351 336 63 786 95 Hop . | . . . . . . . Pick Up 77 | 4 . 6 21 3 38 5 Fast Attach 30 | 7 1 . 4 3 10 5 Attach 21 | . . . 4 2 13 2 Detach 17 | . . . 2 1 11 3 Swap 20 | . . . 1 2 15 2 Drop 51 | 1 . 2 1 6 33 8 Fire 234 | 5 . 12 36 6 147 28 Melee . | . . . . . . . Ram . | . . . . . . . Kick . | . . . . . . . Crush . | . . . . . . . Escape Stasis 11 | . . . . . 11 . Rewire 1 | . . . . . 1 . Trap . | . . . . . . . Miscellaneous . | . . . . . . . Route ------- -11/Scrapyard -10/Materials -10/Mines -9/Materials (discovered 2 exits: *Mat x2) -8/Materials -8/Garrison (discovered 3 exits: *Mat x3) -8/Materials History --------- Turn | Location | Event 5 | -11/Scrapyard | Discovered new exit (range 15) 64 | -11/Scrapyard | Entered Materials 106 | -10/Materials | Discovered new exit (range 6) 109 | -10/Materials | Identified exit to Mines 110 | -10/Materials | Entered Mines 199 | -10/Mines | Learned location of Zion (-7) 267 | -10/Mines | Escorted by a lone wolf Derelict 287 | -10/Mines | Learned location of Storage (-7) 314 | -10/Mines | Build established: Mutant 347 | -10/Mines | Discovered new exit (range 3) 499 | -10/Mines | Identified exit to Materials 499 | -10/Mines | Entered Materials 499 | -9/Materials | Evolved 2 slots: Utility x2 809 | -9/Materials | Build established: Hauler-Mutant 924 | -9/Materials | Discovered new exit (range 11) 938 | -9/Materials | Identified exit to Materials 1160 | -9/Materials | Discovered exit to Materials (range 3) 1227 | -9/Materials | Entered another Materials area 1227 | -8/Materials | Evolved 2 slots: Utility x2 1373 | -8/Materials | Identified exit to Garrison 1373 | -8/Materials | Entered Garrison 1480 | -8/Garrison | Installed Relay Interface Framework 1545 | -8/Garrison | Expanded RIF knowledge: Program Shield 1721 | -8/Garrison | Rescued a captive Derelict 1756 | -8/Garrison | Triggered checkpoint 1791 | -8/Garrison | Garrison Relay disabled 1916 | -8/Garrison | Triggered checkpoint 1917 | -8/Garrison | Triggered checkpoint 2034 | -8/Garrison | Triggered checkpoint 2156 | -8/Garrison | Discovered new exit (range 14) 2386 | -8/Garrison | Triggered checkpoint 2419 | -8/Garrison | Garrison Relay disabled 2751 | -8/Garrison | Build established: Bothacker-Mutant 2910 | -8/Garrison | Triggered checkpoint 2919 | -8/Garrison | Core integrity fell below 50% 2962 | -8/Garrison | Lost 3 parts (1p2w) 3074 | -8/Garrison | Triggered checkpoint 3206 | -8/Garrison | Garrison Relay disabled 3358 | -8/Garrison | Discovered new exit (range 9) 3778 | -8/Garrison | Triggered checkpoint 3936 | -8/Garrison | Triggered checkpoint 4012 | -8/Garrison | Garrison Relay disabled 4240 | -8/Garrison | Triggered checkpoint 4262 | -8/Garrison | Discovered new exit (range 6) 4298 | -8/Garrison | Identified exit to Materials 4354 | -8/Garrison | Triggered checkpoint 4991 | -8/Garrison | Entered Materials 4991 | -8/Materials | Accompanied by 3 allies 5489 | -8/Materials | Self-destructed Last Messages --------------- 05453_ R-06 Scavenger collects Corrupted Wheel. 05454_ R-06 Scavenger collects Imp. Heat Sink. 05455_ G-47 Trooper IFF system glitched. 05456_ R-06 Scavenger collects Corrupted Wheel. 05458_ R-06 Scavenger collects Particle Gun. 05461_ Remote Datajack destroyed. 05462_ R-06 Scavenger collects Lgt. Treads. 05465_ G-47 Trooper system terminally corrupted. 05465_ Lgt. Nuclear Core fried. 05465_ R-06 Scavenger collects Corrupted Aluminum Leg. 05467_ R-06 Scavenger destroyed. 05471_ Chain reaction triggered in Lgt. Nuclear Core. 05471_ Aluminum Leg fried. 05471_ G-47 Trooper destroyed. 05477_ K-01 Serf collects debris. 05482_ System corrupted: Deuterium Engine rejected. 05482_ Wheel destroyed. 05486_ K-01 Serf collects debris. 05488_ Tesla Rifle destroyed. 05488_ Acquired Deuterium Engine. Map ----- +----------------------------------------------------+ | ?????????????????????????????????????????????????? | | ?????????????????????????????????????????????????? | | ?????????????????????????????????????????????????? | | ?????????????????????????????????????????????????? | | ?????????????????????????????????????????????????? | | ?????????????????????????????????????????????????? | | ?????????????????????????????????????????????????? | | ????????????????????????????? ???????????????????? | | ????????????????????????????? #??????????????????? | | ????????????????????????????? #??????????????????? | | ???????????????????????????? #??????????????????? | | ???????????????????????????? #??????????????????? | | ???????????????????????????? #??????????????????? | | ???????????????????????????? +??????????????????? | | ??????????????????????????? #??????????????????? | | ??????????????????????????? #??????????????????? | | ??????????????????????????? ???????????????????? | | ????????????????########### ???????????????????? | | ????????????????# k #g ????????????????????? | | ????????????????#"" ]]%%; ????????????????????? | | ????????????????#"R ]]=%g ?????????????????????? | | ????????????????#"" !]%[%; ?????????????????????? | | ????????????????# = %=;??????????????????????? | | ????????????????# %! ; # ??????????????? | | ????????????????# !== / l# # ??????????????? | | ????????????????# %*% =@# # ??????????????? | | ????????????????## #####+## # ??????????????? | | ?????????????????###???# ## # ??????????????? | | ???????????????????#####+## #####??????????????? | | ???????????????????#* # #???#??????????????? | | ???????????????????# # #??????????????????? | | ???????????????????# """ # #??????????????????? | | ???????????????????# =""" # #??????????????????? | | ???????????????????# """ # #??????????????????? | | ???????????????????# # #??????????????????? | | ?????????#############+#### #??????????????????? | | ?????????# # #??????????????????? | | ?????????#""" # #??????????????????? | | ?????????#"R + T #??????????????????? | | ?????????#""" # #??????????????????? | | ?????????# ]# #??????????????????? | | ?????????# # #??????????????????? | | ?????????######## #??????????????????? | | ??????????????### ! #??????????????????? | | ??????????????#"" !""""" #??????????????????? | | ??????????????#"" """"""""" #??????????????????? | | ??????????????#"T """ """ #??????????????????? | | ??????????????#"" #####??????????????? | | ??????????????#"" !##??????????????? | | ??????????????### """"" !#??????????????? | +----------------------------------------------------+ Best States ------------- Heat Dissipation 62 Energy Generation 15 Energy Capacity 275 Matter Stores 300 Matter Capacity 300 Sight Range 20 Terrain Scan Density 10 Armor Coverage 375 Resistance: KI 30 Evasion (%) 50 Recoil Reduction 2 Offensive Hacking 10 Relay Coupler Types 2 Relay Coupler Value 48 Item Schematics ----------------- None Robot Schematics ------------------ None Fabricated ------------ Nothing Alien Tech Used ----------------- None Achievements -------------- None Challenges ------------ None Game ------ Seed GuidancePointWheel Manual? 0 Play Time 00:36:54 Cumulative 295.7 hours Start 2022.09.10 @ 15:23:34 End 2022.09.10 @ 16:58:38 Sessions 1 Manual Loads 0 Difficulty Rogue Special Mode None Game No. 340 Rogue 340 Adventurer 0 Explorer 0 Win Type - Total 0 Types 0/0/0/0/0/0/0/0/0 Lore% 44 Gallery% 72 Achievement% 59 Wizard Run 0 Options --------- ASCII 0 Keyboard 0 Movement Mouse Keybinds 0 Fullscreen 2 Font 24/Smallcaps Map View 76x50 Tactical HUD 1 Map Filters NONE Filters NONE Steam 1 RUN: 658e66f1-2b27-4b3f-b13d-7b0bff75b784